bitfinex/quotes_BTCUSD_20240731
["timestamp","ask_amount","ask_price","bid_price","bid_amount"]
[1722444546928,0.00183,66514.0,66513.0,2.10439729]
[1722444547128,0.00183,66514.0,66513.0,1.76996092]
[1722444547256,0.00183,66514.0,66513.0,2.08238837]
[1722444547916,0.00183,66514.0,66513.0,1.46750459]
[1722444548901,0.00183,66514.0,66513.0,1.76819759]
[1722444549112,0.00183,66514.0,66513.0,1.77819759]
[1722444549328,0.00183,66514.0,66513.0,1.79819759]
[1722444549528,0.00183,66514.0,66513.0,2.03838596]
[1722444550202,0.00183,66514.0,66513.0,1.85293185]
[1722444550406,0.00183,66514.0,66513.0,1.85292962]
[1722444550606,0.00183,66514.0,66513.0,1.77819614]
[1722444550826,0.00183,66514.0,66513.0,1.7981971]
[1722444551027,0.00183,66514.0,66513.0,2.03838353]
[1722444551199,0.00183,66514.0,66513.0,2.04038353]
[1722444551341,0.00183,66514.0,66513.0,2.1008901]
[1722444551541,0.00083,66516.0,66515.0,0.03]
[1722444551747,1e-06,66516.0,66515.0,1.66707256]
[1722444551953,1e-06,66516.0,66515.0,2.18379273]
[1722444552152,1e-06,66516.0,66515.0,2.78516867]
[1722444552358,1e-06,66516.0,66515.0,2.94096867]
[1722444552607,0.58,66520.0,66519.0,0.666917]
[1722444552608,0.44696086,66520.0,66519.0,0.666917]
[1722444552754,0.00848,66526.0,66525.0,0.778595]
[1722444552956,0.00847,66532.0,66528.0,0.477937]
[1722444553212,0.00847,66532.0,66528.0,1.78478179]
[1722444553403,0.00847,66532.0,66528.0,2.08540679]
[1722444553607,0.00847,66532.0,66528.0,1.76274691]
[1722444554379,0.00847,66532.0,66528.0,1.78274691]
[1722444554606,0.00847,66532.0,66528.0,1.76274691]
[1722444555448,0.00847,66532.0,66528.0,1.77177892]
[1722444555657,0.00847,66532.0,66528.0,1.76274691]
[1722444555996,0.00847,66532.0,66528.0,1.78474691]
[1722444556219,0.00847,66532.0,66528.0,1.77674691]
[1722444556876,0.00998,66529.0,66528.0,1.7857552]
[1722444557071,0.00998,66529.0,66528.0,1.4621302]
[1722444557288,0.00998,66529.0,66528.0,1.33718652]
[1722444557886,0.00998,66529.0,66528.0,0.4863848]
[1722444558098,0.08988,66529.0,66528.0,0.1857598]
[1722444558388,0.08988,66529.0,66528.0,0.7870098]
[1722444558543,0.08888,66529.0,66528.0,0.7730098]
[1722444558764,0.08888,66529.0,66528.0,1.0596348]
[1722444558964,0.08988,66529.0,66528.0,1.0736348]
[1722444559266,0.08988,66529.0,66528.0,0.7590098]
[1722444559477,0.16128,66529.0,66528.0,0.0354478]
[1722444559687,0.16228,66529.0,66528.0,0.0354478]
[1722444559858,0.16228,66529.0,66528.0,0.0214478]
[1722444560279,0.16028,66529.0,66528.0,0.0214478]
[1722444560886,0.16028,66529.0,66528.0,0.0444478]
[1722444561340,0.16028,66529.0,66528.0,0.0304478]
[1722444561859,0.16028,66529.0,66528.0,0.1807598]
[1722444562088,0.16028,66529.0,66528.0,0.4813848]
[1722444562409,0.16128,66529.0,66528.0,0.1897598]
[1722444562634,0.16128,66529.0,66528.0,0.1997598]
[1722444563380,0.16128,66529.0,66528.0,0.5003848]
[1722444564159,0.16128,66529.0,66528.0,0.1997598]
[1722444564568,0.16089655,66529.0,66528.0,0.1997598]
[1722444565049,0.00959655,66529.0,66528.0,1.25419273]
[1722444565398,0.00959655,66529.0,66528.0,1.55481773]
[1722444566001,0.00959655,66529.0,66528.0,1.54481773]
[1722444566210,0.00859655,66529.0,66528.0,1.53581773]
[1722444566467,0.00959655,66529.0,66528.0,1.56381773]
[1722444567069,0.00959655,66529.0,66528.0,1.58381773]
[1722444567301,0.00959655,66529.0,66528.0,1.80876962]
[1722444567705,0.00959655,66529.0,66528.0,1.78876962]
[1722444567915,0.00959655,66529.0,66528.0,1.80876962]
[1722444568116,0.00959655,66529.0,66528.0,1.78876962]
[1722444568533,0.00959655,66529.0,66528.0,1.80876962]
[1722444569122,0.00959655,66529.0,66528.0,1.78876962]
[1722444569764,0.00959655,66529.0,66528.0,1.78876679]
[1722444569968,0.00959655,66529.0,66528.0,1.78576058]
[1722444571037,0.00959655,66529.0,66528.0,1.94256058]
[1722444571235,0.00959655,66529.0,66528.0,1.92256058]
[1722444571865,0.00959655,66529.0,66528.0,1.94456058]
[1722444572221,0.00959655,66529.0,66528.0,1.78576058]
[1722444573060,0.00959655,66529.0,66528.0,1.78575735]
[1722444573254,0.00959655,66529.0,66528.0,1.80775735]
[1722444573457,0.00959655,66529.0,66528.0,1.80575735]
[1722444573659,0.00959655,66529.0,66528.0,2.41400735]
[1722444573992,0.00959655,66529.0,66528.0,2.74570277]
[1722444575337,0.00859655,66529.0,66528.0,2.73170277]
[1722444575695,0.00859655,66529.0,66528.0,2.74570277]
[1722444576304,0.00859655,66529.0,66528.0,2.73166128]
[1722444576521,5.5e-07,66529.0,66528.0,2.87646128]
[1722444576678,5.5e-07,66529.0,66528.0,2.89046128]
[1722444576879,5.5e-07,66529.0,66528.0,2.90446128]
[1722444577105,5.5e-07,66529.0,66528.0,2.89046128]
[1722444577308,5.5e-07,66529.0,66528.0,2.92061128]
[1722444577508,5.5e-07,66529.0,66528.0,2.93461128]
[1722444578153,0.00847,66541.0,66540.0,2.338911]
[1722444578308,0.00847,66541.0,66540.0,2.81114674]
[1722444578718,0.00847,66541.0,66540.0,2.81876775]
[1722444579146,0.07207,66557.0,66540.0,2.81876775]
[1722444579147,0.00847,66557.0,66540.0,2.97756775]
[1722444579355,0.00847,66557.0,66548.0,1.893237]
[1722444579570,0.00847,66557.0,66548.0,2.29068503]
[1722444579775,0.00847,66557.0,66548.0,2.29887236]
[1722444579973,0.00847,66557.0,66548.0,2.59940636]
[1722444580189,0.00847,66557.0,66548.0,2.74150636]
[1722444580396,0.00847,66557.0,66548.0,2.77365636]
[1722444581869,0.00847,66557.0,66548.0,2.78765636]
[1722444582074,0.00847,66557.0,66548.0,2.77365636]
[1722444582304,0.02407337,66549.0,66548.0,2.62655636]
[1722444582516,0.02407337,66549.0,66548.0,2.02248667]
[1722444582722,0.10117337,66549.0,66548.0,1.73503667]
[1722444582949,0.10117337,66549.0,66548.0,1.74904682]
[1722444583169,0.10117337,66549.0,66548.0,1.76304682]
[1722444583317,0.10117337,66549.0,66548.0,1.74904682]
[1722444583540,0.10117337,66549.0,66548.0,1.73504682]
[1722444583742,0.10117337,66549.0,66548.0,1.76304682]
[1722444584040,0.16547337,66549.0,66548.0,1.33760805]
[1722444584274,0.16547337,66549.0,66548.0,1.32360805]
[1722444584454,0.16547337,66549.0,66548.0,1.62414205]
[1722444584659,0.16547337,66549.0,66548.0,1.63814205]
[1722444585674,0.16547337,66549.0,66548.0,1.64714205]
[1722444585850,0.1419,66549.0,66548.0,1.64714205]
[1722444586083,0.1419,66549.0,66548.0,1.63314205]
[1722444586197,0.1419,66549.0,66548.0,1.64714205]
[1722444587203,0.1419,66549.0,66548.0,1.66114205]
[1722444589811,0.0005,66549.0,66548.0,1.7860525]
[1722444590049,0.0005,66549.0,66548.0,1.7720525]
[1722444590543,0.0005,66549.0,66548.0,1.4715185]
[1722444590687,0.0005,66549.0,66548.0,1.36060805]
[1722444590688,0.1426,66549.0,66548.0,1.36060805]
[1722444591016,0.1426,66549.0,66548.0,1.33260805]
[1722444591436,0.1426,66549.0,66548.0,1.34660805]
[1722444592475,0.1426,66549.0,66548.0,1.36060805]
[1722444592694,0.1426,66549.0,66548.0,1.34660805]
[1722444594047,0.1426,66549.0,66548.0,1.36060805]
[1722444594891,0.1476,66549.0,66548.0,0.50998833]
[1722444595112,0.1476,66549.0,66548.0,0.03618733]
[1722444595312,0.1426,66549.0,66548.0,0.48698833]
[1722444595489,0.1426,66549.0,66548.0,0.78752233]
[1722444595939,0.1476,66549.0,66548.0,0.77352233]
[1722444596173,0.1476,66549.0,66548.0,0.17245433]
[1722444596353,0.1476,66549.0,66548.0,0.01318733]
[1722444596354,0.16236,66549.0,66548.0,0.01318733]
[1722444596598,0.16236,66549.0,66548.0,0.02218733]
[1722444597063,0.1476,66549.0,66548.0,0.01318733]
[1722444597326,0.1476,66549.0,66541.0,0.300562]
[1722444597540,0.1476,66549.0,66542.0,0.751405]
[1722444597541,0.005,66543.0,66542.0,0.751405]
[1722444597747,0.1477,66543.0,66542.0,1.08315699]
[1722444598330,0.1427,66543.0,66542.0,1.08315699]
[1722444598714,0.1477,66543.0,66542.0,1.08315699]
[1722444599172,0.1427,66543.0,66542.0,1.08315699]
[1722444599585,0.1427,66543.0,66542.0,1.23270871]
[1722444599990,0.1427,66543.0,66542.0,1.24670871]
[1722444600556,0.1427,66543.0,66542.0,0.81059499]
[1722444600557,0.1477,66543.0,66542.0,0.81059499]
[1722444601076,0.1477,66543.0,66542.0,1.11115699]
[1722444601284,0.0005,66549.0,66548.0,0.450801]
[1722444601491,0.0005,66549.0,66548.0,1.26950082]
[1722444601698,0.0005,66549.0,66548.0,1.22442072]
[1722444601935,0.0005,66549.0,66548.0,1.23262531]
[1722444602537,0.0005,66549.0,66548.0,1.65807933]
[1722444602756,0.0005,66549.0,66548.0,2.08561333]
[1722444603218,0.0005,66549.0,66548.0,2.11576333]
[1722444603425,0.0005,66549.0,66548.0,2.33110535]
[1722444603641,0.0005,66549.0,66548.0,2.63163935]
[1722444603850,0.00133,66549.0,66548.0,2.63163935]
[1722444604063,0.00133,66549.0,66548.0,2.31710535]
[1722444604307,0.00133,66549.0,66548.0,2.61763935]
[1722444604526,0.00133,66549.0,66548.0,2.31937731]
[1722444604730,0.00133,66549.0,66548.0,2.63160784]
[1722444604942,0.00133,66549.0,66548.0,2.61760784]
[1722444604943,0.02490356,66549.0,66548.0,2.61760784]
[1722444605364,0.02490356,66549.0,66548.0,2.63160784]
[1722444605572,5.6e-07,66549.0,66548.0,2.63160784]
[1722444605786,0.00847,66557.0,66556.0,1.679739]
[1722444606030,0.00847,66557.0,66556.0,2.29248293]
[1722444606247,0.00847,66557.0,66556.0,2.30061655]
[1722444606458,0.00847,66557.0,66556.0,2.27861655]
[1722444606886,0.00847,66557.0,66556.0,2.30061655]
[1722444607120,0.00847,66557.0,66556.0,2.31461655]
[1722444607340,0.00847,66565.0,66564.0,1.352079]
[1722444607559,0.00847,66565.0,66564.0,2.04998493]
[1722444607770,0.00847,66565.0,66564.0,1.63272872]
[1722444607979,0.00847,66565.0,66564.0,1.75760298]
[1722444608653,0.00847,66565.0,66564.0,1.78260298]
[1722444609094,0.00847,66565.0,66564.0,2.08306498]
[1722444609303,0.00847,66565.0,66564.0,2.09706498]
[1722444609512,0.00847,66565.0,66564.0,2.11306498]
[1722444610360,0.00347,66565.0,66564.0,2.11306498]
[1722444610561,0.00347,66565.0,66564.0,1.79060298]
[1722444610804,0.00347,66565.0,66564.0,1.78560298]
[1722444611006,0.00347,66565.0,66564.0,1.66072872]
[1722444611233,0.00347,66565.0,66564.0,1.78559827]
[1722444612556,0.00347,66565.0,66564.0,1.66072872]
[1722444613197,0.00347,66565.0,66564.0,2.08607212]
[1722444613399,0.00347,66565.0,66564.0,1.80561012]
[1722444613840,0.00347,66565.0,66564.0,2.11107212]
[1722444614043,0.00347,66565.0,66564.0,1.81261012]
[1722444614252,0.00347,66565.0,66564.0,1.87441012]
[1722444614465,0.02704066,66565.0,66564.0,2.17487212]
[1722444614667,0.00347,66565.0,66564.0,2.11107212]
[1722444614870,0.00347,66565.0,66564.0,2.09107212]
[1722444615105,0.00347,66565.0,66564.0,2.11107212]
[1722444615330,0.00347,66565.0,66564.0,2.11307212]
[1722444616639,0.00347,66565.0,66564.0,2.09107212]
[1722444617497,0.00347,66565.0,66564.0,1.79061012]
[1722444617697,0.00347,66565.0,66564.0,1.78559804]
[1722444618954,0.00347,66565.0,66564.0,1.79453285]
[1722444619380,0.02704049,66565.0,66564.0,1.81453285]
[1722444619596,0.02704049,66565.0,66564.0,1.81653285]
[1722444619824,0.00347,66565.0,66564.0,1.79453285]
[1722444620661,0.06407,66565.0,66564.0,1.78559804]
[1722444620866,0.13987,66565.0,66564.0,1.66072872]
[1722444621715,0.13987,66565.0,66564.0,1.33726672]
[1722444621925,0.13987,66565.0,66564.0,0.93680472]
[1722444622375,0.14487,66565.0,66564.0,0.486791]
[1722444622583,0.14487,66565.0,66564.0,0.036098]
[1722444622802,0.16374102,66565.0,66564.0,0.036098]
[1722444623040,0.14487,66565.0,66564.0,0.036098]
[1722444623282,0.295099,66565.0,66564.0,0.036098]
[1722444623489,0.595557,66565.0,66564.0,0.022098]
[1722444623985,0.595557,66565.0,66564.0,0.026]
[1722444624191,0.595557,66565.0,66564.0,0.014]
[1722444624399,0.595557,66565.0,66558.0,0.150244]
[1722444624400,0.005,66559.0,66558.0,0.150244]
[1722444624606,0.1486,66559.0,66558.0,0.150244]
[1722444624810,0.1486,66559.0,66558.0,0.1583306]
[1722444625010,0.1486,66559.0,66558.0,0.1813306]
[1722444625217,0.1486,66559.0,66558.0,0.7823086]
[1722444625428,0.1486,66559.0,66558.0,0.4818196]
[1722444625635,0.1486,66559.0,66558.0,0.0310866]
[1722444625844,0.38405819,66559.0,66558.0,0.0220866]
[1722444626051,0.17372977,66559.0,66558.0,0.0220866]
[1722444626256,0.62290257,66559.0,66558.0,0.014]
[1722444626664,0.92338757,66559.0,66558.0,0.02209361]
[1722444626868,0.92338757,66559.0,66558.0,0.028]
[1722444627070,0.62290257,66559.0,66558.0,0.014]
[1722444627512,0.62290257,66559.0,66551.0,0.30052]
[1722444627513,0.005,66552.0,66551.0,0.150258]
[1722444627723,0.1486,66552.0,66548.0,0.300533]
[1722444627939,0.005,66547.0,66546.0,0.4715]
[1722444628152,0.005,66543.0,66542.0,0.000913]
[1722444628368,0.1486,66543.0,66542.0,0.000913]
[1722444628788,0.1486,66543.0,66542.0,0.451756]
[1722444629200,0.1486,66543.0,66542.0,0.151194]
[1722444629409,0.1486,66543.0,66542.0,0.464756]
[1722444629610,0.1486,66543.0,66542.0,0.487756]
[1722444630236,0.1486,66543.0,66542.0,0.788318]
[1722444630437,0.1486,66543.0,66542.0,0.487756]
[1722444630855,0.1486,66543.0,66542.0,0.485756]
[1722444631286,0.1486,66543.0,66542.0,0.498756]
[1722444631487,0.1486,66543.0,66542.0,0.5119695]
[1722444632757,0.1486,66543.0,66542.0,0.8125315]
[1722444633168,0.1436,66543.0,66542.0,0.8125315]
[1722444633801,0.1436,66543.0,66542.0,0.8015315]
[1722444633997,0.1436,66543.0,66542.0,0.8125315]
[1722444634212,0.1486,66543.0,66542.0,0.8125315]
[1722444634429,0.1486,66543.0,66542.0,0.0271265]
[1722444634639,0.17218103,66543.0,66542.0,0.0411265]
[1722444634847,0.1486,66543.0,66542.0,0.0281265]
[1722444635076,0.1486,66543.0,66542.0,0.0271265]
[1722444635339,0.1486,66543.0,66542.0,0.7905315]
[1722444635554,0.1436,66543.0,66542.0,1.0910935]
[1722444635767,0.1436,66543.0,66542.0,1.0780935]
[1722444635974,0.1436,66543.0,66542.0,1.1140935]
[1722444636423,0.1486,66543.0,66542.0,0.8135315]
[1722444636631,0.1486,66543.0,66542.0,0.0371265]
[1722444636836,0.1486,66543.0,66542.0,0.1984075]
[1722444637039,0.1486,66543.0,66542.0,0.0481265]
[1722444637249,0.1486,66543.0,66542.0,0.4989695]
[1722444637474,0.1486,66543.0,66542.0,0.7885315]
[1722444637915,0.1486,66543.0,66542.0,0.8025315]
[1722444638136,0.1486,66543.0,66542.0,0.7885315]
[1722444638356,0.17218108,66543.0,66542.0,0.7885315]
[1722444638569,0.17218108,66543.0,66542.0,0.8135315]
[1722444639224,0.17218108,66543.0,66542.0,0.7995315]
[1722444639442,0.1486,66543.0,66542.0,0.7995315]
[1722444639667,0.1486,66543.0,66542.0,1.1140935]
[1722444639871,0.1486,66543.0,66542.0,1.1030935]
[1722444640073,0.1486,66543.0,66542.0,1.1160935]
[1722444642337,0.1486,66543.0,66542.0,1.1020935]
[1722444642544,0.1486,66543.0,66542.0,1.1160935]
[1722444642795,0.17218065,66543.0,66542.0,0.8025315]
[1722444643207,0.1486,66543.0,66542.0,0.8165315]
[1722444643635,0.005,66546.0,66545.0,0.75137]
[1722444643860,0.0015542,66547.0,66546.0,0.751357]
[1722444644087,0.1421,66552.0,66549.0,0.751325]
[1722444644088,0.0015542,66550.0,66549.0,0.751325]
[1722444644301,0.005,66555.0,66549.0,0.751325]
[1722444644302,0.0015542,66551.0,66550.0,0.751312]
[1722444644513,0.00347,66565.0,66550.0,0.751312]
[1722444644514,0.0065542,66554.0,66553.0,0.75128]
[1722444644714,0.0065542,66554.0,66553.0,1.051792]
[1722444644921,0.0065542,66554.0,66553.0,1.074792]
[1722444645140,0.005,66554.0,66553.0,1.08801001]
[1722444645817,0.0015542,66556.0,66555.0,1.05176]
[1722444646027,0.0015542,66556.0,66555.0,1.07476]
[1722444646246,0.0065542,66556.0,66555.0,1.08797258]
[1722444646496,0.03013098,66556.0,66555.0,1.08797258]
[1722444646705,0.005,66556.0,66555.0,1.08797258]
[1722444646921,0.0644,66557.0,66556.0,1.051743]
[1722444647129,0.0644,66557.0,66556.0,1.074743]
[1722444647560,0.0777,66558.0,66557.0,1.051729]
[1722444647779,0.0777,66558.0,66557.0,1.074729]
[1722444647986,0.0777,66558.0,66557.0,1.08793615]
[1722444649280,0.0777,66558.0,66557.0,1.10193615]
[1722444649734,0.0777,66558.0,66557.0,1.08793615]
[1722444650145,0.0777,66558.0,66557.0,1.10193615]
[1722444650801,0.0777,66558.0,66557.0,1.11593615]
[1722444651209,0.0777,66558.0,66557.0,1.10193615]
[1722444651414,0.10127612,66558.0,66557.0,1.10193615]
[1722444651620,0.0777,66558.0,66557.0,1.11593615]
[1722444651823,0.0827,66558.0,66557.0,0.81544215]
[1722444652244,0.1488,66558.0,66557.0,0.80144215]
[1722444652477,0.313924,66558.0,66557.0,0.02720715]
[1722444652688,0.914902,66558.0,66557.0,0.04120715]
[1722444652916,0.914902,66558.0,66557.0,0.014]
[1722444653148,0.914902,66558.0,66542.0,0.301474]
[1722444653149,0.0812,66548.0,66547.0,0.150267]
[1722444653358,0.1473,66548.0,66547.0,0.150267]
[1722444653818,0.1473,66548.0,66547.0,1.12664812]
[1722444654042,0.1423,66548.0,66547.0,1.12664812]
[1722444654302,0.005,66551.0,66550.0,1.051837]
[1722444655139,0.0762,66553.0,66552.0,1.051806]
[1722444655351,0.0762,66553.0,66552.0,1.074806]
[1722444655562,0.0812,66553.0,66552.0,1.074806]
[1722444656177,0.0812,66553.0,66552.0,0.77429]
[1722444656587,0.0812,66553.0,66552.0,0.78429]
[1722444657214,0.0812,66553.0,66552.0,0.79329]
[1722444658071,0.16987756,66553.0,66552.0,0.492774]
[1722444658279,0.16987756,66553.0,66552.0,0.019]
[1722444658896,0.16987756,66553.0,66552.0,0.169258]
[1722444659096,0.16987756,66553.0,66552.0,0.019]
[1722444659517,0.16987756,66553.0,66552.0,0.169258]
[1722444659931,0.16987756,66553.0,66552.0,0.469774]
[1722444660457,0.16987756,66553.0,66552.0,0.492774]
[1722444660663,0.16987756,66553.0,66552.0,0.79329]
[1722444661471,0.16987756,66553.0,66552.0,0.8087708]
[1722444662243,0.16987756,66553.0,66552.0,0.5082548]
[1722444662437,0.16987756,66553.0,66552.0,0.2077388]
[1722444662893,0.16987756,66553.0,66552.0,0.0344808]
[1722444663247,0.16987756,66553.0,66552.0,0.169258]
[1722444663462,0.16987756,66553.0,66552.0,0.18474901]
[1722444665304,0.16987756,66553.0,66552.0,0.48526501]
[1722444666087,0.16987756,66553.0,66552.0,0.18474901]
[1722444666482,0.23209544,66553.0,66552.0,0.03449101]
[1722444666691,1.13801176,66553.0,66552.0,0.019]
[1722444667118,1.44696956,66553.0,66552.0,0.019]
[1722444667321,1.74748156,66553.0,66552.0,0.019]
[1722444667525,1.74748156,66553.0,66552.0,0.009]
[1722444667726,1.89696286,66553.0,66552.0,0.009]
[1722444668183,1.89696286,66553.0,66552.0,0.009913]
[1722444668761,1.89696286,66553.0,66552.0,0.000913]
[1722444669648,1.89696286,66553.0,66525.0,0.300638]
[1722444669649,1.412249,66543.0,66526.0,0.44949772]
[1722444669856,1.5717303,66543.0,66526.0,0.59981472]
[1722444670021,1.5717303,66543.0,66526.0,0.000913]
[1722444670022,1.8622873,66543.0,66526.0,0.000913]
[1722444670201,1.5617303,66543.0,66526.0,0.000913]
[1722444670411,1.5617303,66543.0,66528.0,0.150312]
[1722444670620,1.5717303,66543.0,66526.0,0.151229]
[1722444670825,1.5717303,66543.0,66542.0,0.008913]
[1722444671042,1.5617303,66543.0,66542.0,0.008913]
[1722444671249,0.896392,66543.0,66542.0,0.000913]
[1722444671666,0.897392,66543.0,66542.0,0.000913]
[1722444672265,0.146,66543.0,66542.0,0.151194]
[1722444672465,0.146,66543.0,66542.0,0.000913]
[1722444672670,0.296278,66543.0,66542.0,0.01294004]
[1722444672871,0.296278,66543.0,66542.0,0.000913]
[1722444672872,0.61159042,66543.0,66542.0,0.000913]
[1722444673104,0.91214742,66543.0,66542.0,0.01394004]
[1722444673307,0.91214742,66543.0,66542.0,0.000913]
[1722444673308,0.595835,66543.0,66542.0,0.000913]
[1722444673514,0.148,66543.0,66542.0,0.000913]
[1722444673720,0.148,66543.0,66542.0,0.001913]
[1722444673929,0.145,66543.0,66542.0,0.01394004]
[1722444674135,0.295278,66543.0,66542.0,0.001913]
[1722444674378,0.295278,66543.0,66542.0,0.01594004]
[1722444674582,0.295278,66543.0,66542.0,0.003913]
[1722444674583,0.68562632,66543.0,66542.0,0.003913]
[1722444674792,0.98618332,66543.0,66542.0,0.003913]
[1722444675550,0.68562632,66543.0,66542.0,0.003913]
[1722444675935,0.145,66543.0,66542.0,0.003913]
[1722444676158,0.145,66543.0,66542.0,0.154194]
[1722444676364,0.145,66543.0,66542.0,0.01594004]
[1722444676776,0.145,66543.0,66542.0,0.46678304]
[1722444676906,0.16858289,66543.0,66542.0,0.16622104]
[1722444677122,0.145,66543.0,66542.0,0.16622104]
[1722444677547,0.145,66543.0,66542.0,0.01594004]
[1722444677750,0.3548593,66543.0,66542.0,0.01594004]
[1722444677957,0.595835,66543.0,66542.0,0.003913]
[1722444678283,1.196949,66543.0,66542.0,0.003913]
[1722444678483,0.896392,66543.0,66542.0,0.003913]
[1722444678830,1.196949,66543.0,66542.0,0.002913]
[1722444679032,1.31779932,66543.0,66542.0,0.002913]
[1722444679262,1.31879932,66543.0,66542.0,0.000913]
[1722444679670,1.01924232,66543.0,66542.0,0.000913]
[1722444679846,0.597835,66543.0,66542.0,0.000913]
[1722444680224,0.92197588,66543.0,66542.0,0.000913]
[1722444680683,0.17158388,66543.0,66542.0,0.000913]
[1722444681088,0.02558388,66543.0,66542.0,0.16327886]
[1722444681292,0.02558388,66543.0,66542.0,1.07788]
[1722444681494,0.02558388,66543.0,66542.0,1.08996486]
[1722444682137,0.02858388,66543.0,66542.0,1.08996486]
[1722444682342,0.02858388,66543.0,66542.0,0.78940286]
[1722444682555,0.02858388,66543.0,66542.0,0.78740286]
[1722444683200,0.02358388,66543.0,66542.0,1.10796486]
[1722444683403,0.02358388,66543.0,66542.0,1.09396486]
[1722444683613,0.02858388,66543.0,66542.0,1.09396486]
[1722444683801,0.02858388,66543.0,66542.0,0.80140286]
[1722444684004,0.02858388,66543.0,66542.0,0.78740286]
[1722444684213,0.02858388,66543.0,66542.0,0.80140286]
[1722444684963,0.10638388,66543.0,66542.0,0.20027886]
[1722444685194,0.19244947,66543.0,66542.0,0.20027886]
[1722444685395,0.16678388,66543.0,66542.0,0.51484086]
[1722444685806,0.16678388,66543.0,66542.0,0.48684086]
[1722444686007,0.16678388,66543.0,66542.0,0.20027886]
[1722444686210,0.16678388,66543.0,66542.0,0.50084086]
[1722444686405,0.16678388,66543.0,66542.0,0.51484086]
[1722444686566,0.16678388,66543.0,66542.0,0.21427886]
[1722444686765,0.16678388,66543.0,66542.0,0.50084086]
[1722444687944,0.16678388,66543.0,66542.0,0.51484086]
[1722444688597,0.02858388,66543.0,66542.0,0.81540286]
[1722444688804,0.02358388,66543.0,66542.0,1.11596486]
[1722444689017,0.02358388,66543.0,66542.0,1.26551658]
[1722444689231,0.02358388,66543.0,66542.0,1.56607858]
[1722444689431,0.0015542,66552.0,66547.0,0.751347]
[1722444689432,0.005,66548.0,66547.0,0.751347]
[1722444689645,0.005,66548.0,66547.0,0.774347]
[1722444689858,0.0015542,66556.0,66550.0,0.150262]
[1722444689859,0.005,66551.0,66550.0,0.150262]
[1722444690063,0.005,66553.0,66552.0,0.450774]
[1722444690272,0.005,66554.0,66552.0,0.023]
[1722444690388,0.00347,66565.0,66556.0,0.751245]
[1722444690389,0.005,66557.0,66556.0,0.751245]
[1722444690594,0.005,66557.0,66556.0,1.074743]
[1722444690798,0.005,66557.0,66556.0,1.08674547]
[1722444692699,0.02857641,66557.0,66556.0,1.08674547]
[1722444692898,0.09307641,66557.0,66556.0,1.09574547]
[1722444693121,0.02857641,66557.0,66556.0,1.09574547]
[1722444693380,0.02857641,66557.0,66556.0,1.10674547]
[1722444693548,0.02857641,66557.0,66556.0,0.80624747]
[1722444695855,0.02857641,66557.0,66556.0,0.05500247]
[1722444696135,0.92121141,66557.0,66556.0,0.03200247]
[1722444696310,1.01333255,66557.0,66556.0,0.03200247]
[1722444696540,1.01333255,66557.0,66556.0,0.02]
[1722444696741,0.98975614,66557.0,66556.0,0.02]
[1722444697156,0.38876814,66557.0,66556.0,0.02]
[1722444697362,0.1464,66557.0,66556.0,0.02]
[1722444697553,0.1464,66557.0,66556.0,0.170249]
[1722444697752,0.005,66557.0,66556.0,0.170249]
[1722444698034,0.005,66557.0,66556.0,0.18223337]
[1722444698175,0.005,66557.0,66556.0,0.03198437]
[1722444698371,0.005,66557.0,66556.0,0.18223337]
[1722444698579,0.005,66557.0,66556.0,0.48273137]
[1722444699704,0.005,66557.0,66556.0,0.80622937]
[1722444700127,0.0285767,66557.0,66556.0,0.80622937]
[1722444700524,0.0235767,66557.0,66556.0,1.10672737]
[1722444700671,0.0285767,66557.0,66556.0,1.10672737]
[1722444701075,0.0285767,66557.0,66556.0,0.80622937]
[1722444701288,0.005,66557.0,66556.0,0.80622937]
[1722444701487,0.005,66557.0,66556.0,0.50573137]
[1722444701682,0.1326572,66557.0,66556.0,0.03198437]
[1722444701969,0.9445922,66557.0,66556.0,0.03198437]
[1722444702183,1.200529,66557.0,66556.0,0.03198437]
[1722444702413,1.200529,66557.0,66556.0,0.02]
[1722444702814,1.200529,66557.0,66556.0,0.011]
[1722444703028,0.512568,66553.0,66552.0,0.000913]
[1722444703705,0.517568,66553.0,66552.0,0.000913]
[1722444703907,0.89440008,66553.0,66552.0,0.000913]
[1722444704117,0.89358,66553.0,66552.0,0.000913]
[1722444704323,0.91716002,66553.0,66552.0,0.000913]
[1722444704515,0.61664802,66553.0,66552.0,0.000913]
[1722444704838,0.72252121,66553.0,66552.0,0.000913]
[1722444705044,1.02303321,66553.0,66552.0,0.000913]
[1722444705284,0.005,66543.0,66542.0,0.000913]
[1722444705483,1.415249,66543.0,66542.0,0.000913]
[1722444705809,1.114692,66543.0,66542.0,0.000913]
[1722444706048,0.814135,66543.0,66542.0,0.000913]
[1722444706282,0.298278,66543.0,66542.0,0.000913]
[1722444706422,0.598835,66543.0,66542.0,0.000913]
[1722444706631,0.899392,66543.0,66542.0,0.000913]
[1722444706832,0.9893312,66543.0,66542.0,0.000913]
[1722444707033,0.148,66543.0,66542.0,0.000913]
[1722444707335,0.15,66543.0,66542.0,0.001913]
[1722444707465,0.148,66543.0,66542.0,0.000913]
[1722444707669,0.148,66543.0,66542.0,0.01297245]
[1722444707869,0.148,66543.0,66542.0,0.451756]
[1722444707870,0.005,66543.0,66542.0,0.451756]
[1722444708070,0.005,66543.0,66542.0,0.46381513]
[1722444708497,0.005,66543.0,66542.0,0.76837713]
[1722444708688,0.02858202,66543.0,66542.0,0.46781513]
[1722444708917,0.02858202,66543.0,66542.0,0.46681513]
[1722444709269,0.02858202,66543.0,66542.0,0.46781513]
[1722444709481,0.02858202,66543.0,66542.0,0.02697213]
[1722444709482,0.04746692,66543.0,66542.0,0.02697213]
[1722444709682,0.02958202,66543.0,66542.0,0.02697213]
[1722444709854,0.02958202,66543.0,66542.0,0.02297213]
[1722444709998,0.02958202,66543.0,66542.0,0.010913]
[1722444710199,0.02958202,66543.0,66542.0,0.02297213]
[1722444710200,0.07762162,66543.0,66542.0,0.02297213]
[1722444710406,0.07762162,66543.0,66542.0,0.03397213]
[1722444710407,0.0540396,66543.0,66542.0,0.03397213]
[1722444710655,0.0540396,66543.0,66542.0,0.021913]
[1722444710828,0.0540396,66543.0,66542.0,0.03395615]
[1722444711423,0.006,66543.0,66542.0,0.03395615]